bitfinex-derivatives/quotes_ETHF0:USTF0_20260115
["timestamp","ask_amount","ask_price","bid_price","bid_amount"]
[1768486391628,0.14056891,3381.2,3379.4,0.00443702]
[1768486392133,0.00443702,3380.6,3379.4,0.00443702]
[1768486392337,0.00443702,3380.6,3380.0,0.14797]
[1768486392530,0.00822397,3380.6,3380.0,0.14797]
[1768486397335,0.14056891,3381.2,3380.0,0.14797]
[1768486397733,1.35656891,3381.2,3380.0,0.14797]
[1768486398541,0.00443702,3380.9,3380.0,0.14797]
[1768486402748,0.14804537,3380.9,3380.0,0.14797]
[1768486404845,0.01721343,3380.5,3380.0,0.14797]
[1768486405940,0.01721343,3380.3,3380.0,0.14797]
[1768486406849,0.14804537,3380.9,3380.0,0.14797]
[1768486414158,0.00268751,3381.2,3380.3,0.14795]
[1768486415150,0.00268751,3381.2,3380.5,0.14794]
[1768486415351,0.00443702,3381.1,3380.5,0.14794]
[1768486415568,0.00268751,3381.2,3380.5,0.14794]
[1768486416969,0.24192689,3382.6,3380.5,0.14794]
[1768486416970,0.13165038,3382.7,3381.1,1.16779959]
[1768486417177,0.13165038,3382.5,3381.2,0.14791]
[1768486417368,0.13165038,3383.3,3381.2,0.08603623]
[1768486417572,0.13165038,3383.6,3382.6,0.14785]
[1768486417774,0.13165038,3383.6,3381.9,0.14788]
[1768486418077,0.13165038,3383.1,3381.9,0.15029499]
[1768486418272,0.13165038,3383.1,3382.4,0.00443702]
[1768486419772,0.13165038,3383.1,3381.9,0.15029499]
[1768486420778,0.13165038,3383.1,3382.2,0.00443702]
[1768486422970,1.29944997,3383.1,3382.2,0.00443702]
[1768486423280,0.13165038,3383.1,3382.2,0.00443702]
[1768486423481,0.00270278,3383.6,3382.2,0.00443702]
[1768486423482,1.34935316,3383.6,3382.2,0.00443702]
[1768486423677,0.13435316,3383.6,3382.2,0.00443702]
[1768486423884,0.00270278,3383.6,3382.2,0.00443702]
[1768486424585,0.00270278,3383.6,3382.6,0.14785]
[1768486424772,1.30215275,3383.6,3382.6,0.14785]
[1768486424973,0.13165038,3383.5,3382.2,0.00443702]
[1768486425374,0.00270278,3383.6,3382.2,0.09264502]
[1768486425570,0.00270278,3383.6,3382.8,0.14784]
[1768486427882,0.00270278,3383.6,3382.9,0.14784]
[1768486435586,1.29864226,3383.4,3382.2,0.15230702]
[1768486435794,0.13084267,3383.4,3382.3,0.14787]
[1768486435992,0.00566078,3383.6,3382.3,0.14787]
[1768486436189,0.00566078,3383.6,3382.4,0.14786]
[1768486437401,1.16607103,3383.4,3382.4,0.14786]
[1768486438702,1.16607103,3383.0,3382.4,0.14786]
[1768486438897,1.16607103,3382.8,3382.2,0.00443702]
[1768486439091,1.16607103,3382.6,3382.0,0.14788]
[1768486439398,1.16607103,3382.8,3382.0,0.14788]
[1768486439698,1.16607103,3382.6,3382.0,0.14788]
[1768486439996,1.16607103,3382.6,3382.0,0.11457608]
[1768486440190,1.16607103,3383.0,3382.0,0.11457608]
[1768486440191,0.13084267,3383.0,3382.0,0.11457608]
[1768486440393,1.16607103,3382.6,3382.0,0.1190131]
[1768486440806,0.13084267,3383.5,3382.1,0.14788]
[1768486441100,1.16607103,3383.3,3382.3,0.14787]
[1768486443408,0.13084267,3383.5,3382.3,0.14787]
[1768486443704,1.16607103,3383.2,3382.3,0.14787]
[1768486446905,0.13084267,3383.5,3382.4,0.14786]
[1768486447101,0.00566078,3383.6,3382.7,0.14785]
[1768486448010,0.13084267,3384.5,3382.8,0.14785]
[1768486448311,0.13084267,3384.5,3382.3,0.07977493]
[1768486448312,1.16607103,3384.3,3382.9,1.16607103]
[1768486449100,1.16852657,3384.3,3382.9,1.16607103]
[1768486449301,0.00245554,3384.3,3383.2,0.14783]
[1768486450212,0.00245554,3384.3,3382.3,1.86265541]
[1768486450213,0.00245554,3384.3,3382.4,0.07922309]
[1768486450413,0.00245554,3384.3,3382.6,0.07922309]
[1768486450414,0.00443702,3384.1,3382.6,0.07922309]
[1768486450615,0.00245554,3384.3,3382.6,0.07922309]
[1768486450907,0.00245554,3384.3,3383.4,0.14782]
[1768486454510,0.00245554,3384.3,3383.5,0.14781]
[1768486455613,0.00245554,3384.3,3383.6,0.14781]
[1768486458912,0.13084267,3384.9,3383.6,0.14781]
[1768486459112,1.00583773,3384.8,3383.6,0.14781]
[1768486459315,0.13084267,3384.7,3383.9,0.00443702]
[1768486459515,0.13084267,3384.7,3383.6,0.14781]
[1768486459815,0.13421255,3384.7,3383.6,0.14781]
[1768486460408,0.13084267,3384.6,3382.6,0.07922309]
[1768486460717,1.78625036,3384.7,3383.2,0.14782]
[1768486460718,0.13084267,3384.4,3383.2,0.14782]
[1768486461615,0.13084267,3384.4,3383.5,0.00443702]
[1768486461912,0.13084267,3384.4,3383.2,0.14782]
[1768486462914,0.13084267,3384.4,3383.5,0.00443702]
[1768486466920,0.13084267,3384.4,3383.2,0.14782]
[1768486468522,0.13084267,3384.4,3383.5,0.00443702]
[1768486469822,0.13084267,3384.4,3383.2,0.14782]
[1768486471217,0.13084267,3384.4,3383.5,0.00443702]
[1768486471420,1.16573995,3383.8,3383.2,0.14782]
[1768486471823,1.16573995,3383.6,3382.9,0.14784]
[1768486472510,1.16573995,3383.6,3382.9,0.150798]
[1768486473821,0.13510134,3384.1,3382.9,0.150798]
[1768486474023,1.16573995,3383.6,3382.9,0.150798]
[1768486477120,0.13510134,3384.1,3383.2,0.14783]
[1768486477322,1.30084129,3384.1,3383.2,0.14783]
[1768486477820,1.16573995,3383.9,3383.2,0.14783]
[1768486478027,0.13510134,3384.1,3382.9,0.002958]
[1768486478028,1.16573995,3383.5,3382.9,0.002958]
[1768486478320,1.16573995,3384.0,3382.7,0.14785]
[1768486478321,1.16573995,3383.3,3382.7,0.14785]
[1768486478828,1.16573995,3383.3,3382.8,0.14785]
[1768486479023,1.30084129,3383.8,3382.9,0.14784]
[1768486479527,1.16573995,3383.6,3382.9,0.14784]
[1768486479825,1.16573995,3383.4,3382.9,0.14784]
[1768486480821,1.16573995,3383.1,3382.0,3.69567219]
[1768486481030,0.13510134,3383.4,3382.1,0.14788]
[1768486481031,1.16573995,3382.6,3382.1,0.14788]
[1768486481819,0.00443702,3382.7,3382.1,0.14788]
[1768486490439,0.13510134,3383.5,3382.4,0.14786]
[1768486490637,1.16573995,3383.2,3382.4,0.14786]
[1768486491740,0.00443702,3383.1,3382.4,0.14786]
[1768486493442,1.16573995,3383.0,3382.4,0.14786]
[1768486494546,1.16573995,3382.8,3381.9,0.00241499]
[1768486494841,1.16573995,3382.6,3381.9,0.00241499]
[1768486495044,1.16573995,3382.8,3381.9,0.00241499]
[1768486495638,1.16573995,3382.8,3382.4,0.14786]
[1768486495840,1.16573995,3382.8,3381.9,0.00241499]
[1768486496538,1.16573995,3382.8,3382.4,0.14786]
[1768486496737,1.16573995,3382.8,3381.9,0.00241499]
[1768486498348,1.16573995,3382.6,3381.9,0.00241499]
[1768486498648,1.16573995,3382.4,3381.9,0.15029499]
[1768486499339,1.29609165,3382.9,3381.9,0.15029499]
[1768486500055,0.12944898,3382.8,3381.9,0.15029499]
[1768486501151,0.12944898,3382.8,3382.0,0.00443702]
[1768486501448,0.00443702,3383.1,3382.0,0.00443702]
[1768486501841,0.00443702,3383.1,3382.0,0.15231702]
[1768486502147,0.12944898,3382.8,3382.0,0.15231702]
[1768486502449,0.12944898,3382.8,3380.7,0.14288467]
[1768486502450,0.12944898,3382.8,3381.6,0.1479]
[1768486503342,0.12944898,3382.8,3381.6,0.1500372]
[1768486506643,0.00443702,3383.1,3381.7,0.14789]
[1768486506845,0.00443702,3383.1,3381.6,0.0021372]
[1768486507045,0.00443702,3383.1,3381.6,1.31166454]
[1768486507254,0.00443702,3383.1,3381.7,0.14288467]
[1768486508543,0.00443702,3383.1,3382.3,0.14787]
[1768486511849,0.00443702,3383.1,3381.7,0.14288467]
[1768486512552,0.00443702,3383.1,3382.3,0.14787]
[1768486514055,0.00443702,3383.1,3382.1,0.14288467]
[1768486514545,1.29609165,3384.1,3382.7,0.14785]
[1768486514746,0.87602107,3384.0,3382.7,0.14785]
[1768486515060,1.29609165,3384.1,3382.8,0.14784]
[1768486515261,0.87599745,3384.0,3382.8,0.14784]
[1768486515463,1.29609165,3384.1,3382.8,0.14784]
[1768486515755,0.00443702,3383.7,3382.8,0.14784]
[1768486516655,0.00443702,3383.7,3382.9,0.00443702]
[1768486516863,1.17107969,3383.7,3382.1,0.14288467]
[1768486517156,1.16664267,3383.2,3382.3,0.14787]
[1768486521654,0.12944898,3383.6,3382.3,0.14787]
[1768486521858,1.16664267,3383.3,3382.3,0.14787]
[1768486526462,1.16664267,3383.3,3382.4,0.14786]
[1768486528876,0.13607795,3383.2,3382.4,0.14786]
[1768486529156,1.16664267,3382.9,3381.6,0.0021372]
[1768486529551,1.16664267,3382.9,3382.1,0.14787]
[1768486530862,1.30272062,3382.9,3382.1,0.14787]
[1768486531163,1.30272062,3382.9,3381.6,0.0021372]
[1768486531564,1.30272062,3382.9,3382.1,0.14787]
[1768486532763,1.30272062,3382.9,3381.6,0.0021372]
[1768486533164,1.30272062,3382.9,3382.1,0.14787]
[1768486533366,1.16664267,3382.5,3381.6,0.0021372]
[1768486533562,0.13607795,3382.8,3381.6,0.0021372]
[1768486533866,1.16664267,3382.9,3381.6,0.0021372]
[1768486534660,1.16664267,3382.9,3382.1,0.14787]
[1768486534960,1.16664267,3382.9,3381.6,0.0021372]
[1768486535665,1.16664267,3382.9,3382.1,0.14787]
[1768486535861,1.16664267,3382.9,3381.6,0.0021372]
[1768486536667,1.16664267,3382.9,3382.1,0.14787]
[1768486536965,1.16664267,3382.9,3381.6,0.0021372]
[1768486537267,0.13607795,3382.8,3381.2,0.13326615]
[1768486537469,1.16664267,3382.2,3381.1,3.69567219]
[1768486537668,1.16664267,3382.2,3380.8,0.13326615]
[1768486537869,0.00443702,3382.0,3381.3,0.14791]
[1768486538567,0.0068088,3382.0,3381.3,0.15024363]
[1768486538767,1.16664267,3381.8,3380.5,3.69567219]
[1768486539163,1.16664267,3381.8,3380.2,0.13326615]
[1768486539662,1.16664267,3381.8,3380.9,0.14793]
[1768486540469,0.13607795,3381.7,3380.2,0.00371896]
[1768486540662,1.16664267,3381.4,3380.2,0.00371896]
[1768486541167,1.16664267,3381.4,3380.3,0.14795]
[1768486543169,1.30272062,3381.4,3380.2,0.00371896]
[1768486543364,1.16664267,3381.0,3379.4,0.13326615]
[1768486543561,1.16664267,3381.0,3379.7,0.14798]
[1768486544164,1.16664267,3380.6,3379.7,0.14798]
[1768486544365,1.16664267,3380.6,3379.7,0.1509648]
[1768486544969,1.16664267,3381.0,3379.7,0.1509648]
[1768486546565,1.16664267,3380.6,3378.5,0.13326615]
[1768486546764,1.16664267,3380.2,3379.1,0.148]
[1768486547075,1.16664267,3380.2,3378.5,0.13326615]
[1768486547076,0.00443702,3379.9,3378.5,0.13326615]
[1768486547475,0.00443702,3379.9,3378.5,0.13635537]
[1768486547972,0.00443702,3379.9,3379.1,0.148]
[1768486549874,0.00443702,3379.9,3378.5,0.13635537]
[1768486550173,1.16664267,3379.8,3378.5,0.13635537]
[1768486551073,1.16664267,3379.8,3378.5,0.00308922]
[1768486553473,1.17107969,3379.9,3378.5,0.00308922]
[1768486553780,1.17107969,3379.9,3378.5,0.14440148]
[1768486554677,1.17107969,3379.9,3378.5,0.00308922]
[1768486558583,1.3131579,3379.9,3378.5,0.00308922]
[1768486560285,0.14207821,3379.8,3378.5,0.00308922]
[1768486560472,1.16664267,3379.5,3378.5,0.00308922]
[1768486560781,1.16664267,3379.0,3377.8,0.14806]
[1768486561483,1.1692838,3378.5,3377.8,0.14806]
[1768486561673,1.1692838,3379.0,3377.1,0.14131226]
[1768486561674,1.1692838,3378.1,3377.1,0.14131226]
[1768486561873,1.1692838,3378.7,3377.6,0.14807]
[1768486562179,0.00373482,3379.5,3378.3,0.14131226]
[1768486562487,0.00373482,3379.5,3378.6,0.00443]
[1768486562884,0.00373482,3379.5,3378.6,0.00693328]
[1768486563073,1.1692838,3379.9,3378.7,0.14131226]
[1768486563277,1.1692838,3379.7,3378.7,0.14131226]
[1768486563477,0.00443702,3379.6,3378.7,0.14131226]
[1768486563677,1.1692838,3379.5,3378.7,0.14131226]
[1768486563991,1.17165613,3379.5,3378.7,0.14131226]
[1768486564680,1.17165613,3379.5,3378.9,0.14802]
[1768486565290,0.00237233,3379.5,3378.6,0.00693328]
[1768486565987,0.00237233,3379.5,3378.9,0.14802]
[1768486567788,1.78832339,3380.6,3378.9,0.14802]
[1768486567980,2.08426698,3380.5,3378.9,0.14802]
[1768486568183,0.87426698,3380.4,3378.9,0.14802]
[1768486568383,0.87426698,3380.3,3378.9,0.14802]
[1768486568580,1.21,3380.5,3378.9,0.14802]
[1768486568781,0.87512265,3380.4,3378.9,0.14802]
[1768486568988,0.00443702,3380.0,3378.9,0.14802]
[1768486570792,0.00443702,3380.0,3379.3,0.148]
[1768486571078,0.00214458,3380.5,3379.3,0.148]
[1768486571496,0.00214458,3380.5,3379.4,0.14799]
[1768486571993,0.00443702,3380.3,3379.4,0.14799]
[1768486577186,0.00214458,3380.5,3379.3,0.14131226]
[1768486577394,0.28997821,3381.7,3379.8,0.14131226]
[1768486577600,0.87831315,3381.6,3379.8,0.14131226]
[1768486577790,0.87831315,3381.5,3379.8,0.14131226]
[1768486577989,0.87831315,3381.4,3379.8,0.14131226]
[1768486578190,0.87831315,3381.3,3379.9,0.28928226]
[1768486578391,0.87831315,3381.2,3380.3,0.00443702]
[1768486578697,0.00326995,3381.3,3380.3,0.00443702]
[1768486578698,0.00443702,3380.9,3380.3,0.00443702]
[1768486581797,0.00443702,3380.9,3378.6,1.79082667]
[1768486581798,0.00443702,3380.9,3379.4,0.13022557]
[1768486582093,1.78832339,3380.5,3379.3,0.148]
[1768486582292,0.00443702,3380.9,3379.3,0.13022557]
[1768486582892,0.00443702,3380.9,3379.8,0.00443702]
[1768486585302,1.16806127,3380.4,3379.8,0.00443702]
[1768486587513,0.00443702,3380.9,3379.8,0.00443702]
[1768486589016,0.00443702,3380.9,3379.9,0.13204454]
[1768486590612,0.00443702,3380.9,3379.8,0.15241702]
[1768486594023,0.00443702,3380.9,3379.8,0.00443702]
[1768486597014,0.00443702,3380.9,3379.8,0.13648156]
[1768486597320,0.00443702,3380.9,3379.9,0.13204454]
[1768486601630,0.00443702,3380.9,3379.4,0.13204454]
[1768486602625,0.00443702,3380.9,3379.8,0.28002454]
[1768486604627,0.00443702,3380.9,3380.0,0.00443702]
[1768486607327,0.00443702,3380.9,3379.8,0.14798]
[1768486611430,1.16806876,3380.3,3379.8,0.27900186]
[1768486612931,1.16806876,3380.3,3379.9,0.13102186]
[1768486613118,0.04854596,3380.3,3379.9,0.13102186]
[1768486613432,0.04854596,3380.3,3379.8,0.14798]
[1768486615929,1.16806876,3379.9,3379.3,0.13102186]
[1768486616131,1.16806876,3379.5,3378.9,3.82669405]
[1768486616324,1.16806876,3379.5,3379.2,0.148]
[1768486616631,1.16806876,3379.5,3378.9,3.82669405]
[1768486616632,1.16806876,3379.5,3378.9,0.13102186]
[1768486617528,1.16806876,3379.5,3378.4,0.13102186]
[1768486617713,1.16806876,3379.5,3379.2,0.148]
[1768486617915,1.16806876,3379.5,3378.4,0.13102186]
[1768486618431,0.14794,3380.7,3378.6,0.15053328]
[1768486618432,1.16806876,3379.3,3378.6,0.15053328]
[1768486618624,1.16806876,3380.0,3378.7,0.14802]
[1768486618927,1.16806876,3379.5,3378.8,0.14802]
[1768486619822,1.16806876,3380.0,3378.8,0.14802]
[1768486620021,1.16806876,3379.5,3378.8,0.14802]
[1768486621331,1.16857315,3380.0,3378.8,0.14802]
[1768486623031,0.14794,3380.7,3378.6,0.00250328]
[1768486623032,0.14042998,3380.6,3379.1,0.148]
[1768486623332,0.14042998,3380.6,3379.3,0.148]
[1768486623535,0.14042998,3380.3,3379.3,0.148]
[1768486624220,1.16857315,3380.4,3379.3,0.148]
[1768486624533,1.30900313,3380.8,3379.4,0.14799]
[1768486627228,1.16857315,3380.4,3379.4,0.14799]
[1768486630142,0.14042998,3380.7,3379.4,0.14799]
[1768486630335,1.16857315,3380.6,3379.4,0.14799]
[1768486632040,0.14042998,3380.7,3379.4,0.14799]
[1768486632238,1.16857315,3380.6,3379.4,0.14799]
[1768486635837,0.14042998,3380.5,3379.4,0.14799]
[1768486636645,0.14042998,3380.5,3378.6,0.00250328]
[1768486636646,1.16857315,3379.8,3378.8,0.14802]
[1768486642243,0.14042998,3380.2,3378.8,0.14802]
[1768486642443,1.16857315,3379.9,3378.8,0.14802]
[1768486643746,1.16857315,3379.8,3378.8,0.14802]
[1768486644348,0.13051511,3379.7,3378.6,0.00250328]
[1768486645143,1.16857315,3379.8,3378.6,0.00250328]
[1768486645543,1.16857315,3379.8,3378.8,0.14802]
[1768486645944,1.29908826,3379.8,3378.8,0.14802]
[1768486646948,0.13051511,3379.7,3378.6,0.00250328]
[1768486647650,0.13051511,3379.7,3378.8,0.14802]
[1768486647851,0.13051511,3379.7,3378.6,0.00250328]
[1768486648652,0.13051511,3378.6,3377.3,5.2795317]
[1768486648844,0.13051511,3378.6,3376.6,0.1350496]
[1768486649039,1.17301017,3378.3,3377.3,0.14808]
[1768486649239,0.00443702,3378.3,3377.3,0.14808]
[1768486649651,0.00798318,3378.3,3377.3,0.15146992]
[1768486650052,1.16857315,3378.2,3376.5,0.2831696]
[1768486650556,0.13051511,3378.1,3376.5,0.2831696]
[1768486650760,0.13051511,3378.1,3376.5,4.3901696]
[1768486651256,0.13051511,3378.1,3376.5,0.15150122]
[1768486651555,0.13051511,3378.1,3376.5,1.29750122]
[1768486651757,0.13051511,3377.7,3376.5,0.15150122]
[1768486653757,0.13051511,3378.1,3376.6,0.14812]
[1768486654459,0.00798318,3378.3,3376.5,0.13843082]
[1768486654759,0.00798318,3378.3,3377.2,0.14809]
[1768486656862,0.00798318,3378.3,3377.2,0.1350496]
[1768486657679,0.00798318,3378.3,3377.4,0.14808]
[1768486659580,0.00798318,3378.3,3377.5,0.14808]
[1768486659879,0.13051511,3379.0,3377.6,0.14807]
[1768486660779,1.30352528,3378.6,3377.4,3.748]
[1768486660974,0.13051511,3378.5,3377.0,0.1481]
[1768486661174,0.13051511,3378.5,3377.1,2.961]
[1768486661382,0.13051511,3378.5,3377.0,0.1481]
[1768486661886,1.29908826,3377.8,3376.5,0.00338122]
[1768486662877,1.16857315,3378.2,3376.5,0.15150122]
[1768486663182,1.29908826,3378.2,3376.5,0.00338122]
[1768486663479,0.13051511,3378.1,3376.5,0.00338122]
[1768486664568,0.13051511,3378.1,3376.6,0.14812]
[1768486665879,0.13051511,3378.1,3376.5,0.00338122]
[1768486665880,0.13495213,3378.6,3376.8,0.14811]
[1768486666080,0.13495213,3378.6,3376.9,0.1481]
[1768486670873,0.13495213,3378.6,3376.9,4.2561]
[1768486671484,0.13495213,3378.6,3376.9,0.1481]
[1768486672186,0.13495213,3378.6,3377.0,0.1481]
[1768486673087,0.13495213,3378.6,3377.1,0.14809]
[1768486673383,0.00443702,3378.6,3377.1,0.14809]
[1768486673896,0.00443702,3378.6,3377.6,0.14807]
[1768486676389,0.00443702,3378.6,3376.7,0.14335755]
[1768486676691,0.00443702,3378.6,3377.1,0.14809]
[1768486677181,0.00443702,3378.6,3377.2,0.14809]
[1768486677885,0.00443702,3378.6,3377.4,0.14808]
[1768486680682,0.00443702,3378.6,3376.5,0.00338122]
[1768486680683,0.13889308,3378.4,3376.5,2.96538122]
[1768486680889,1.04365922,3378.3,3376.5,0.00338122]
[1768486681089,0.13889308,3378.3,3376.6,1.146]
[1768486681588,0.13889308,3378.3,3376.8,0.14811]
[1768486682693,0.90504894,3378.2,3376.8,0.14811]
[1768486682894,0.13889308,3378.2,3376.8,0.14811]
[1768486683981,0.90519842,3378.1,3376.8,0.14811]
[1768486684182,0.13889308,3378.2,3376.8,0.14811]
[1768486685594,0.15246702,3378.6,3376.8,0.14811]
[1768486685595,1.04411497,3378.1,3376.8,0.14811]
[1768486685892,0.13889308,3378.1,3376.8,0.14811]
[1768486686196,0.13889308,3378.5,3376.8,0.14811]
[1768486686385,0.90514975,3378.4,3376.8,0.14811]
[1768486686584,0.13889308,3378.5,3377.0,0.1481]
[1768486686891,0.00443702,3378.6,3377.4,0.14808]
[1768486690595,0.1433301,3378.6,3377.4,0.14808]
[1768486690811,0.1433301,3378.6,3376.8,0.14811]
[1768486690812,0.13889308,3378.4,3376.8,0.14811]
[1768486691293,1.16994104,3377.7,3376.8,0.14811]
[1768486691996,0.13889308,3378.4,3376.9,0.1481]
[1768486691997,1.16994104,3378.1,3376.9,0.1481]
[1768486692292,0.13889308,3378.4,3376.9,0.1481]
[1768486692493,1.16994104,3378.3,3376.9,0.1481]
[1768486692696,1.16994104,3378.3,3376.5,0.14673877]
[1768486692697,1.17437806,3378.6,3377.4,0.14808]
[1768486693294,0.00443702,3378.6,3377.4,0.14808]
[1768486694097,0.00443702,3378.6,3377.5,0.14808]
[1768486700797,0.00254215,3379.0,3377.8,0.14806]
[1768486700987,0.00254215,3379.0,3377.9,0.14806]
[1768486702097,0.00443702,3378.8,3377.9,0.14806]
[1768486703905,0.00443702,3378.8,3378.0,0.00443702]
[1768486705205,0.13487828,3378.8,3377.4,0.14808]
[1768486708607,0.13487828,3378.8,3377.5,0.14808]
[1768486708808,0.13487828,3378.8,3377.6,0.14807]
[1768486709409,0.00443702,3378.8,3377.1,0.14013065]
[1768486709705,0.00443702,3378.8,3377.9,0.14806]
[1768486710206,0.00443702,3378.8,3377.1,1.146]
[1768486711304,0.00443702,3378.8,3377.4,0.14808]
[1768486711820,0.00443702,3378.8,3377.5,0.14807]
[1768486713013,0.13487828,3378.8,3377.5,0.14807]
[1768486713516,0.13487828,3378.8,3377.0,0.14013065]
[1768486713517,1.16960686,3377.6,3377.0,0.1481]
[1768486714216,1.16960686,3377.8,3377.0,0.1481]
[1768486715010,0.13044126,3378.5,3377.0,0.1481]
[1768486715203,1.16960686,3377.8,3377.0,0.1481]
[1768486719223,1.16960686,3377.6,3377.0,0.1481]
[1768486719420,0.13044126,3378.0,3376.5,0.00338122]
[1768486720425,0.13044126,3378.0,3376.5,0.15150122]
[1768486721128,0.13044126,3378.0,3376.6,0.14812]
[1768486724636,0.13044126,3378.4,3377.1,0.14809]
[1768486726132,0.00443702,3378.8,3377.1,0.14809]
[1768486726430,1.03508403,3378.7,3377.1,0.14809]
[1768486726632,0.13044126,3378.7,3377.1,0.14809]
[1768486728630,0.13044126,3378.4,3376.6,0.14013065]
[1768486728834,0.14803,3378.6,3376.5,0.00338122]
[1768486728835,1.92072959,3378.0,3376.5,0.00338122]
[1768486729040,0.13044126,3378.5,3376.9,0.1481]
[1768486729334,0.13044126,3378.4,3376.9,0.1481]
[1768486730937,0.13180675,3378.2,3376.9,0.1481]
[1768486733135,0.13180675,3378.2,3377.0,0.1481]
[1768486733537,1.92209508,3378.5,3377.0,0.1481]
[1768486734432,0.13180675,3378.4,3377.0,0.1481]
[1768486735037,1.92209508,3378.0,3376.5,0.00338122]
[1768486736653,1.92209508,3378.0,3377.0,0.1481]
[1768486738442,0.13180675,3378.0,3377.0,0.1481]
[1768486739339,1.16999509,3377.5,3377.0,0.1481]
[1768486739544,1.30180184,3378.0,3377.0,0.1481]
[1768486739739,1.16999509,3377.5,3377.0,0.1481]
[1768486740643,1.16999509,3377.5,3376.5,0.00338122]
[1768486741643,1.16999509,3377.5,3377.0,0.1481]
[1768486742039,1.16999509,3377.3,3376.5,0.00338122]
[1768486742938,1.16999509,3377.3,3376.6,0.14812]
[1768486743138,1.16999509,3377.3,3376.7,0.14811]
[1768486743339,1.17001879,3377.8,3376.8,0.14811]
[1768486743541,0.13180675,3378.0,3377.0,0.1481]
[1768486743742,0.00443702,3378.8,3377.0,0.1481]
[1768486743743,1.30182554,3378.5,3377.0,0.1481]
[1768486744044,0.13180675,3378.3,3377.0,0.1481]
[1768486745040,0.90555301,3378.2,3377.0,0.1481]
[1768486745247,1.17001879,3378.1,3377.0,0.1481]
[1768486745442,1.30182554,3378.1,3377.0,0.1481]
[1768486745640,0.13180675,3378.0,3377.0,0.1481]
[1768486745839,1.17001879,3377.7,3376.5,0.00338122]
[1768486746244,1.17001879,3377.7,3377.0,0.1481]
[1768486746631,1.17001879,3377.7,3376.5,0.00338122]
[1768486746945,1.17001879,3377.3,3376.4,0.14812]
[1768486747746,1.17001879,3377.3,3376.4,0.00269833]
[1768486747941,1.17001879,3377.3,3376.4,0.15081833]
[1768486750142,1.17001879,3376.9,3375.9,0.34242042]
[1768486750548,0.00443702,3376.7,3375.9,0.34242042]
[1768486751247,0.00443702,3376.7,3375.9,0.34462255]
[1768486751847,0.00443702,3376.7,3375.2,0.13229694]
[1768486752635,0.00443702,3376.7,3375.2,0.13520758]
[1768486752842,0.00443702,3376.7,3375.9,0.14815]
[1768486753041,0.13180675,3377.1,3375.9,0.14815]
[1768486753748,1.17001879,3377.3,3375.9,0.14815]
[1768486754054,0.00443702,3376.9,3376.0,0.14814]
[1768486759255,0.13180675,3377.6,3375.5,0.13229694]
[1768486759448,0.13180675,3377.6,3376.2,0.14813]
[1768486759755,1.17001879,3377.8,3376.4,0.14813]
[1768486760356,0.00443702,3377.4,3376.8,0.00443702]
[1768486762558,0.13180675,3378.0,3376.8,0.00443702]
[1768486762757,0.14106798,3378.5,3376.8,0.00443702]
[1768486762953,0.90418015,3378.4,3376.9,0.1481]
[1768486763256,0.14106798,3378.5,3376.9,0.1481]
[1768486763456,0.90418713,3378.4,3376.9,0.1481]
[1768486763658,0.00443702,3378.0,3376.9,0.1481]
[1768486766660,1.17001879,3377.8,3376.9,0.1481]
[1768486769159,1.17001879,3377.3,3376.0,0.13334706]
[1768486769359,0.12927529,3377.7,3376.2,0.14813]
[1768486770263,0.12927529,3377.7,3376.6,0.00443702]
[1768486772670,0.12927529,3377.7,3376.2,0.14813]
[1768486775274,0.12927529,3377.7,3376.4,0.14812]
[1768486777287,0.12927529,3377.7,3376.1,0.13334706]
[1768486777491,0.00443702,3378.0,3376.5,0.14812]
[1768486778993,1.17445581,3378.0,3376.5,0.14812]
[1768486779289,1.3037311,3378.0,3376.5,0.14812]
[1768486779492,1.29929408,3377.6,3376.5,0.14812]
[1768486779692,1.17001879,3377.2,3375.6,0.13334706]
[1768486779881,1.17001879,3377.2,3376.1,0.00443702]
[1768486780080,1.17001879,3377.2,3376.1,0.15257702]
[1768486781292,1.17001879,3377.2,3376.2,0.14813]
[1768486784093,1.17445581,3378.0,3376.4,0.14812]
[1768486784094,1.17001879,3377.9,3376.4,0.14812]
[1768486784285,0.90420747,3377.8,3376.4,0.14812]
[1768486784482,1.17001879,3377.9,3376.4,0.14812]
[1768486784686,0.9041766,3377.8,3376.4,0.14812]
[1768486784980,1.17001879,3377.9,3376.4,0.14812]
[1768486785184,0.90417644,3377.8,3376.4,0.14812]
[1768486785385,1.17001879,3377.9,3376.1,0.13778408]
[1768486786594,1.17001879,3377.9,3376.6,0.14812]
[1768486787798,0.13371231,3378.0,3376.7,0.14811]
[1768486787995,0.00443702,3378.0,3376.4,0.13334706]
[1768486789000,0.00443702,3378.0,3377.0,0.1481]
[1768486790600,0.13371231,3378.0,3377.0,0.1481]
[1768486791991,1.30865415,3377.9,3377.0,0.1481]
[1768486792195,1.30865415,3377.9,3376.5,0.14812]
[1768486793205,0.13863536,3377.8,3376.5,0.14812]
[1768486793400,0.00443702,3378.0,3376.6,0.14812]
[1768486796205,0.00443702,3378.0,3376.7,0.14811]
[1768486798304,0.00443702,3378.0,3376.8,0.14811]
[1768486801217,0.00443702,3378.0,3376.6,0.13316011]
[1768486801403,0.00443702,3378.0,3377.1,0.1481]
[1768486802710,0.00443702,3378.0,3377.2,0.14809]
[1768486805608,1.16948528,3377.8,3376.5,0.28128011]
[1768486805815,1.16948528,3377.4,3376.6,0.14812]
[1768486806314,1.16948528,3377.6,3376.6,0.14812]
[1768486806708,1.16948528,3377.6,3376.7,0.14811]
[1768486809503,0.00443702,3378.0,3376.7,0.14811]
[1768486809702,1.16948528,3377.7,3376.7,0.14811]
[1768486809998,0.00443702,3378.0,3376.8,0.14811]
[1768486810708,1.16948528,3377.5,3376.8,0.14811]
[1768486811918,1.16948528,3377.4,3376.8,0.14811]
[1768486812715,1.16948528,3377.2,3376.2,0.14813]
[1768486813214,1.16948528,3377.4,3376.3,0.14813]
[1768486813409,1.16948528,3377.4,3376.4,0.14813]
[1768486815521,1.16948528,3377.4,3376.1,0.13759713]
[1768486815522,1.16948528,3377.0,3376.1,0.00443702]
[1768486815816,0.13863536,3377.6,3376.1,0.00443702]
[1768486816020,1.16948528,3377.0,3376.1,0.00443702]
[1768486816518,1.16948528,3377.2,3376.1,0.00443702]
[1768486816712,1.16948528,3377.2,3376.4,0.14812]
[1768486822020,1.16948528,3377.0,3376.1,0.00443702]
[1768486822218,1.16948528,3376.8,3376.1,0.00443702]
[1768486822528,0.13105527,3377.8,3376.2,1.16948528]
[1768486822708,1.16948528,3377.5,3376.2,1.16948528]
[1768486823113,1.16948528,3376.7,3376.1,0.00443702]
[1768486825618,0.13105527,3377.3,3376.1,0.00443702]